[Event "1st Semana Santa Torrevieja 2022"]
[Site "Torrevieja Alicante"]
[Date "2022.04.17"]
[Round "8.7"]
[White "Cuenca Jimenez, Jose Fernando"]
[Black "Cifuentes Parada, Roberto"]
[Result "1-0"]
[ECO "D20"]
[WhiteElo "2552"]
[BlackElo "2427"]
[Annotator "TA"]
[PlyCount "91"]
[EventDate "2022.04.12"]
[EventType "swiss"]
[EventCountry "ESP"]
[SourceTitle "playchess.com"]
[Source "ChessBase"]
[SourceQuality "1"]
[TimeControl "5400+30"]

{[%evp 12,91,32,27,5,25,20,22,23,27,33,33,40,31,42,39,43,41,43,49,45,41,52,50,50,34,51,47,58,40,65,63,71,60,61,52,67,46,64,56,64,59,131,140,142,142,148,141,139,145,148,156,180,145,181,179,252,237,294,294,294,294,294,269,497,494,472,474,451,434,608,608,608,608,602,550,694,629,29939,11498,4614,2030]} 1. d4 {[%emt 0:00:04]} d5 {[%emt 0:00:07]} 2. c4 {[%emt 0:00:05]} dxc4 {[%emt 0:00:07]} 3. e4 {[%emt 0:00:55]} c5 {[%emt 0:04:04]} 4. d5 {[%emt 0:00:39]} e6 {[%emt 0:00:15]} 5. Bxc4 {[%emt 0:00:46]} Nf6 {[%emt 0:00:15]} 6. Nc3 {[%emt 0:00:31]} exd5 {[%emt 0:00:08]} 7. exd5 {[%emt 0:00:30]} a6 {[%emt 0:00:33] The main line 7...a6 scores better than 7...Bd6. D20: Queen's Gambit Accepted: 3 e3 and 3 e4.} 8. Nf3 {[%emt 0:00:58]} Bd6 {[%emt 0:01:32]} 9. Qe2+ {[%emt 0:00:05]} Qe7 {[%emt 0:02:02] The position is equal.} 10. O-O {[%emt 0:00:04]} Qxe2 {[%emt 0:01:58]} 11. Bxe2 {[%emt 0:00:05]} Bg4 {[%emt 0:03:01]} 12. h3 {[%emt 0:00:18]} Bxf3 {[%emt 0:00:13]} 13. Bxf3 {[%emt 0:00:05] [#]} O-O $146 {[%emt 0:00:11]} ({Predecessor:} 13... Nbd7 14. Re1+ Kd8 15. a4 Re8 16. Be3 b6 17. g3 Kc8 18. Kg2 Kb7 19. Rad1 Rad8 {½-½ (82) Tseng,W (2399)-Hering,H (2229) ICCF email 2013}) 14. a4 {[%emt 0:00:54]} Nbd7 {[%emt 0:00:19]} 15. a5 {[%emt 0:00:15]} Rfe8 {[%emt 0:00:38]} 16. Rd1 {[%emt 0:02:51]} Rac8 {[%emt 0:03:17]} 17. Kf1 {[%emt 0:04:39]} h6 {[%emt 0:01:20]} 18. Ra4 {[%emt 0:01:56]} Kf8 {[%emt 0:05:15]} 19. g3 {[%emt 0:01:42][%cal Bg2g3,Bg3g4][%mdl 32]} Rc7 {[%emt 0:05:06]} 20. Be2 {[%emt 0:02:03]} Rec8 {[%emt 0:03:41]} 21. g4 {[%emt 0:17:42]} c4 {[%emt 0:03:44]} 22. h4 {[%emt 0:33:16]} Re8 {[%emt 0:06:49]} 23. Be3 {[%emt 0:04:18]} Ne4 {[%emt 0:05:42][%cal Oe4g3]} 24. Kg2 {[%emt 0:07:21] Inhibits Ng3.} ({Much worse is} 24. Bxc4 Ndc5 25. Bxc5 Nxc5 $11) 24... Ndf6 {[%emt 0:03:48]} 25. Nxe4 {[%emt 0:03:15]} ({Don't play} 25. Rxc4 Rxc4 26. Bxc4 Nxg4 $11) 25... Rxe4 {[%emt 0:00:44]} 26. Bf3 {[%emt 0:00:31]} Rxe3 {[%emt 0:06:24] White leaves nothing to chance now.} 27. fxe3 $16 {[%emt 0:00:18]} Nd7 {[%emt 0:01:26]} 28. Rc1 {[%emt 0:01:05]} Ne5 {[%emt 0:00:04]} 29. Be2 {[%emt 0:00:20]} Rc5 {[%emt 0:00:19]} 30. e4 {[%emt 0:03:27]} g5 {[%emt 0:01:48]} 31. h5 {[%emt 0:03:00]} Ke7 {[%emt 0:02:52]} 32. Rc2 {[%emt 0:01:31]} Kd7 {[%emt 0:08:00]} 33. Kh3 {[%emt 0:00:26]} Rb5 {[%emt 0:03:46]} (33... f6 {keeps fighting.} 34. Bxc4 Bc7) 34. Bxc4 $18 {[%emt 0:01:07]} Nxc4 {[%emt 0:00:06]} 35. Raxc4 {[%emt 0:00:27]} Rxa5 {[%emt 0:00:10][%mdl 4096] Endgame KRR-KRB} 36. Kg2 {[%emt 0:01:11]} Rb5 {[%emt 0:01:03]} 37. b4 {[%emt 0:02:45]} a5 $2 {[%emt 0:00:41] [#]} (37... f6 38. Rf2 Ke7) 38. bxa5 {[%emt 0:00:33]} Rxa5 {[%emt 0:00:05]} 39. Rb2 {[%emt 0:01:20] Prevents Rb5.} b5 {[%emt 0:00:05]} 40. Rc6 {[%emt 0:00:21]} b4 {[%emt 0:01:44]} (40... Ke7 $142 41. Rb6 b4) 41. e5 {[%emt 0:00:57]} Bxe5 {[%emt 0:00:53]} 42. Rxb4 {[%emt 0:00:12]} Rxd5 {[%emt 0:00:10]} 43. Rxh6 {[%emt 0:00:09]} Rd3 {[%emt 0:01:34]} 44. Ra6 {[%emt 0:01:57] [#] And now Rb7+ would win.} Bd6 {[%emt 0:01:01]} 45. Rb7+ {[%emt 0:01:16]} Ke6 {[%emt 0:00:05]} 46. Rbb6 {[%emt 0:00:08] Weighted Error Value: White=0.03 (flawless) /Black=0.45} 1-0

[Event "1st Semana Santa Torrevieja 2022"]
[Site "Torrevieja Alicante"]
[Date "2022.04.17"]
[Round "8.9"]
[White "Rakotomaharo, Fy Antenaina"]
[Black "Rudzinska, Michalina"]
[Result "1/2-1/2"]
[ECO "B22"]
[WhiteElo "2474"]
[BlackElo "2211"]
[Annotator "TA"]
[PlyCount "162"]
[EventDate "2022.04.12"]
[EventType "swiss"]
[EventCountry "ESP"]
[SourceTitle "playchess.com"]
[Source "ChessBase"]
[SourceQuality "1"]
[TimeControl "5400+30"]

{[%evp 17,162,0,8,0,20,14,17,0,16,0,0,-15,-8,-8,0,0,0,0,0,-20,-16,0,0,-32,-24,-58,-59,-84,-89,-105,-118,-124,-97,-88,-98,-93,-89,-100,-93,-128,-132,-135,-135,-126,-139,-131,-124,-150,-116,-137,-94,-103,-89,-91,-65,-65,-66,-65,-64,-64,-64,-65,-61,-62,-54,-39,-32,-34,-19,-15,-8,-12,0,0,0,0,0,0,0,0,27,35,27,27,39,39,59,60,60,59,62,60,59,45,45,45,47,45,54,53,68,68,69,69,69,69,69,69,69,69,69,69,69,69,69,69,69,69,69,68,69,69,69,69,69,69,69,69,69,69,69,69,69,69,69,69,69,69,69,69,69,69,69,69,69,69,68]} 1. e4 {[%emt 0:00:03]} c5 {[%emt 0:00:08]} 2. Nf3 {[%emt 0:00:06]} e6 {[%emt 0:00:10]} 3. c3 {[%emt 0:00:22]} d5 {[%emt 0:00:40]} 4. exd5 {[%emt 0:00:13]} Qxd5 {[%emt 0:00:10]} 5. d4 {[%emt 0:00:04]} Nf6 {[%emt 0:00:16]} 6. Na3 {[%emt 0:00:07][%cal Bb1a3,Ba3b5,Bb5d6][%mdl 32]} Nc6 {[%emt 0:06:06]} 7. Nb5 {[%emt 0:03:00]} Qd8 {[%emt 0:02:33]} 8. dxc5 {[%emt 0:00:23]} Bxc5 {[%emt 0:02:24]} 9. Qxd8+ {[%emt 0:00:34]} Kxd8 {[%emt 0:00:07]} 10. b4 {[%emt 0:12:40] B22: Sicilian: 2 c3.} Bb6 {[%emt 0:04:35]} 11. Nd6 {[%emt 0:02:55]} (11. a4 {with more complications.} Ne4 12. Nd2 Bxf2+ 13. Ke2) 11... Ke7 {[%emt 0:01:01]} 12. Nc4 {[%emt 0:00:05] The position is equal.} Ne4 {[%emt 0:08:54][%csl LRc3,LRf2]} 13. Nxb6 {[%emt 0:02:02]} (13. b5 {is more complex.} Na5 14. Ba3+ Kf6 15. Nxb6 axb6 16. Bd3) 13... axb6 {[%emt 0:00:07]} 14. Bb2 {[%emt 0:03:08]} f6 {[%emt 0:01:24]} 15. Bd3 {[%emt 0:01:44]} Nd6 {[%emt 0:00:27]} 16. a4 {[%emt 0:12:47] Prevents b5.} e5 {[%emt 0:02:48] Strongly threatening ...e4.} 17. Nd2 {[%emt 0:00:06] Against e4} Be6 {[%emt 0:03:28]} 18. Ke2 {[%emt 0:12:51]} Kf7 {[%emt 0:10:14] [#]} 19. Rhd1 $146 {[%emt 0:03:58]} ({Predecessor:} 19. h4 h5 20. f3 Rhd8 21. Rhg1 Ne7 22. g3 Rd7 23. Rg2 Rad8 24. Bc1 Rc8 25. Ra3 {0-1 (64) Nikolova,A (2275)-Videnova,I (2345) Pleven 2018}) 19... Rhd8 {[%emt 0:00:34]} 20. Bc2 {[%emt 0:02:19]} Rac8 {[%emt 0:06:25][%cal Oc6d4] White must now prevent ...Nd4+!} 21. Bb3 {[%emt 0:05:32]} Ne7 {[%emt 0:08:14][%cal Bc6e7,Be7d5,Bd5c3][%mdl 32]} 22. Bxe6+ {[%emt 0:03:55]} Kxe6 {[%emt 0:00:08]} 23. a5 {[%emt 0:00:12]} Nd5 {[%emt 0:02:00]} 24. axb6 {[%emt 0:03:43]} Nxc3+ {[%emt 0:08:28]} 25. Bxc3 {[%emt 0:00:20]} Rxc3 {[%emt 0:00:07]} 26. Ne4 {[%emt 0:00:25]} Rc6 {[%emt 0:00:48]} 27. Nc5+ {[%emt 0:07:49] [#]} Ke7 $1 {[%emt 0:00:09]} 28. Na4 {[%emt 0:01:11]} Ra8 {[%emt 0:01:38]} 29. Kd3 {[%emt 0:00:16]} Rc4 {[%emt 0:03:53]} 30. Nc3 {[%emt 0:01:45]} Rxa1 {[%emt 0:04:47]} 31. Rxa1 $17 {[%emt 0:00:05][%mdl 4096] Endgame KRN-KRN} Ke6 {[%emt 0:00:31]} 32. Rb1 {[%emt 0:00:14]} Rd4+ {[%emt 0:00:45]} 33. Ke2 {[%emt 0:01:12]} Nc4 {[%emt 0:01:16]} 34. Na4 {[%emt 0:00:11]} Kd5 {[%emt 0:02:50]} 35. Nc5 {[%emt 0:00:31]} Kc6 {[%emt 0:00:46]} 36. Rc1 {[%emt 0:00:15]} Kxb6 {[%emt 0:01:50]} 37. Ne6 {[%emt 0:00:17][%csl LRd4,LRg7]} Re4+ {[%emt 0:03:12]} 38. Kd3 {[%emt 0:00:09]} Nd6 {[%emt 0:00:14]} 39. Rc7 {[%emt 0:00:23]} Rxb4 {[%emt 0:05:14] ...Rb2 is the strong threat.} 40. Rxg7 {[%emt 0:00:07]} Rb2 {[%emt 0:00:36]} 41. f3 {[%emt 0:01:08] Against e4+} Kc6 {[%emt 0:01:20]} 42. h4 {[%emt 0:00:44][%cal Bh2h4,Bh4h5,Bh5h6,Bh6h7][%mdl 32]} b5 {[%emt 0:01:48]} 43. Kc3 {[%emt 0:00:59]} Rf2 {[%emt 0:01:34]} 44. h5 {[%emt 0:00:03]} f5 {[%emt 0:01:39]} 45. h6 {[%emt 0:01:27]} e4 {[%emt 0:00:23]} 46. Rxh7 {[%emt 0:04:27]} Rxg2 {[%emt 0:01:48]} 47. Rc7+ {[%emt 0:00:05]} Kb6 {[%emt 0:00:03]} 48. Rd7 {[%emt 0:00:04]} Nc4 {[%emt 0:01:23]} 49. h7 {[%emt 0:01:35]} Rh2 {[%emt 0:00:05]} 50. fxe4 {[%emt 0:00:04]} fxe4 {[%emt 0:00:06]} 51. Ng5 {[%emt 0:00:56] Threatens to win with Rd8. White is slightly better.} e3 {[%emt 0:00:52]} (51... Kc6 $2 52. Rd8 $18) 52. Rd8 {[%emt 0:01:20]} ({Reject} 52. Nf3 {[#]} e2 $1 53. Re7 Rh3 $11) 52... e2 {[%emt 0:03:38]} 53. Re8 {[%emt 0:00:04]} Nd6 {[%emt 0:00:55] [#]} 54. Rxe2 {[%emt 0:00:08]} Rh4 {[%emt 0:01:03]} 55. Kd3 {[%emt 0:02:17]} Nf7 {[%emt 0:00:41]} 56. Nxf7 {[%emt 0:01:02]} (56. Re6+ {is interesting.} Ka5 57. Re4 Rh6 58. Nxf7 Rxh7 59. Ne5) 56... Rxh7 $14 {[%emt 0:00:04] KRN-KR} 57. Ng5 {[%emt 0:00:29]} Rc7 {[%emt 0:00:29]} 58. Nf3 {[%emt 0:00:29]} Rc4 {[%emt 0:00:52]} 59. Nd4 {[%emt 0:00:30]} Rc1 {[%emt 0:00:49]} 60. Re6+ {[%emt 0:00:08]} Kc7 {[%emt 0:00:24]} 61. Nxb5+ {[%emt 0:00:14]} Kd7 {[%emt 0:00:03]} 62. Rh6 {[%emt 0:00:07]} Rg1 {[%emt 0:00:21]} 63. Nc3 {[%emt 0:00:15]} Ke7 {[%emt 0:00:20]} 64. Kd4 {[%emt 0:00:33]} Rg5 {[%emt 0:00:45]} 65. Ke4 {[%emt 0:00:44]} Kf7 {[%emt 0:00:19]} 66. Kf4 {[%emt 0:00:28]} Rg6 {[%emt 0:00:11]} 67. Rh8 {[%emt 0:00:19]} Ke6 {[%emt 0:00:10]} 68. Ne4 {[%emt 0:00:13]} Kd5 {[%emt 0:00:21]} 69. Rd8+ {[%emt 0:00:15]} Kc4 {[%emt 0:00:37]} 70. Ke3 {[%emt 0:00:05]} Rh6 {[%emt 0:00:27]} 71. Rc8+ {[%emt 0:00:07]} Kb5 {[%emt 0:00:19]} 72. Kd4 {[%emt 0:00:06]} Rh4 {[%emt 0:00:21]} 73. Rc5+ {[%emt 0:00:37]} Kb6 {[%emt 0:00:09][%cal Oh4e4]} 74. Re5 {[%emt 0:00:08]} Rh6 {[%emt 0:00:53]} 75. Nc3 {[%emt 0:00:27]} Rh4+ {[%emt 0:00:14]} 76. Kd5 {[%emt 0:00:08]} Rh6 {[%emt 0:00:13]} 77. Rg5 {[%emt 0:00:08]} Rf6 {[%emt 0:01:24]} 78. Ne4 {[%emt 0:00:08]} Rf1 {[%emt 0:00:25]} 79. Rg6+ {[%emt 0:01:59]} Kb5 {[%emt 0:00:14]} 80. Nd6+ {[%emt 0:00:12]} Kb4 {[%emt 0:00:56]} 81. Rg4+ {[%emt 0:00:23]} Kb3 {[%emt 0:00:24] Weighted Error Value: White=0.06 (flawless) /Black=0.06 (flawless)} 1/2-1/2

[Event "1st Semana Santa Torrevieja 2022"]
[Site "Torrevieja Alicante"]
[Date "2022.04.17"]
[Round "8.10"]
[White "Gomez Ledo, Roberto Carlos"]
[Black "Perez Perez, Gabriel"]
[Result "1-0"]
[ECO "E05"]
[WhiteElo "2471"]
[BlackElo "2194"]
[Annotator "TA"]
[PlyCount "67"]
[EventDate "2022.04.12"]
[EventType "swiss"]
[EventCountry "ESP"]
[SourceTitle "playchess.com"]
[Source "ChessBase"]
[SourceQuality "1"]
[TimeControl "5400+30"]

{[%evp 16,67,0,0,64,49,60,44,83,82,96,101,89,97,167,168,163,160,165,164,158,158,155,147,141,146,203,169,180,169,216,211,256,200,170,214,221,139,198,164,234,233,206,170,189,126,350,338,516,506,552,515,486,457]} 1. d4 {[%emt 0:00:04]} d5 {[%emt 0:05:29]} 2. Nf3 {[%emt 0:00:19]} Nf6 {[%emt 0:00:14]} 3. g3 {[%emt 0:00:21]} e6 {[%emt 0:03:42]} 4. Bg2 {[%emt 0:00:10]} Be7 {[%emt 0:00:03]} 5. c4 {[%emt 0:00:17]} O-O {[%emt 0:00:50]} 6. O-O {[%emt 0:01:16]} dxc4 {[%emt 0:00:08]} 7. Ne5 {[%emt 0:03:17]} Nc6 {[%emt 0:04:48]} 8. Nxc6 {[%emt 0:01:00]} bxc6 {[%emt 0:00:11]} 9. Na3 {[%emt 0:00:10][%cal Bb1a3,Ba3c4,Bc4a5,Ba5c6][%mdl 32]} Nd5 {[%emt 0:09:18] E05: Open Catalan: 5 Nf3 Be7.} ({Black should try} 9... Bxa3 $11 10. bxa3 Ba6) 10. Nxc4 $14 {[%emt 0:00:51]} c5 {[%emt 0:00:13]} 11. Na5 {[%emt 0:14:16]} Qd7 {[%emt 0:06:33] White is slightly better.} 12. e4 {[%emt 0:03:49]} Nb6 {[%emt 0:02:37] [#]} 13. dxc5 $146 {[%emt 0:03:47]} ({Predecessor:} 13. d5 Ba6 14. Re1 exd5 15. exd5 Bf6 16. Rb1 Rfe8 17. Be3 Qb5 18. Qd2 c4 19. Nc6 {1-0 (30) Thybo,J (2517)-Olsen,F (2397) Aarhus 2019}) 13... Bxc5 {[%emt 0:00:58]} 14. Qc2 {[%emt 0:05:39]} Bd4 {[%emt 0:04:39] [#]} (14... Qb5 $16) 15. Nc6 $1 $18 {[%emt 0:03:40] Black must now prevent e5.} Bb7 {[%emt 0:21:23]} 16. Nxd4 {[%emt 0:00:38]} Qxd4 {[%emt 0:00:09]} 17. Be3 {[%emt 0:01:37]} (17. Qxc7 $6 Bxe4 18. Qf4 (18. Be3 Qd5 $11) 18... f5 $16) 17... Qc4 {[%emt 0:00:22]} 18. Rfc1 {[%emt 0:00:39]} Qxc2 {[%emt 0:06:15]} 19. Rxc2 {[%emt 0:00:07] Strongly threatening a4.} f5 {[%emt 0:00:06]} 20. f3 {[%emt 0:09:42][%cal Bf2f3,Bf3e4][%mdl 32]} Rf7 {[%emt 0:00:02]} (20... c6 $16 {keeps fighting.} 21. Rd1 Rfd8 22. Rxd8+ Rxd8) 21. Rac1 {[%emt 0:00:37]} Rc8 {[%emt 0:02:28]} 22. b3 {[%emt 0:00:59]} c6 {[%emt 0:03:52]} (22... Rd7 $142 23. Rc5 g6) 23. a4 {[%emt 0:05:47]} Rd8 {[%emt 0:01:16]} 24. Bf1 {[%emt 0:02:32] And now a5 would win.} fxe4 {[%emt 0:00:32]} 25. fxe4 {[%emt 0:00:11]} c5 {[%emt 0:00:31]} 26. Bg2 {[%emt 0:03:15]} (26. Rxc5 Bxe4 27. Bh3 Bf5) 26... Rd3 {[%emt 0:01:43]} (26... c4 $16) 27. Rc3 {[%emt 0:01:08]} c4 {[%emt 0:03:37]} (27... Rfd7 $142 28. Rxd3 (28. Bxc5 Rxc3 29. Rxc3 Rd1+ 30. Kf2 Rd2+ 31. Kf3 Nd5 $16) 28... Rxd3) 28. Rxd3 {[%emt 0:05:26]} ({Don't do} 28. bxc4 $6 Rxc3 29. Rxc3 Nxa4 $16) 28... cxd3 {[%emt 0:01:30]} 29. Rd1 {[%emt 0:00:06]} Ba6 {[%emt 0:04:22] [#]} 30. Bf1 {[%emt 0:01:36]} ({White should play} 30. Bh3 $1 $18 Re7 31. a5) 30... Rf3 $2 {[%emt 0:04:29] This costs Black the game.} (30... Rd7 $16 {is a better defense.} 31. a5 Nc8) 31. Bf4 {[%emt 0:01:59]} ({Not} 31. Bxd3 Rxe3 32. Bxa6 Rxe4 33. Rd8+ Kf7 $18) 31... e5 {[%emt 0:00:43] [#]} (31... Rxf1+ $142 32. Kxf1 Bb7) 32. Bg2 $1 {[%emt 0:01:08] White is clearly winning.} Rxf4 {[%emt 0:00:10]} (32... exf4 33. Bxf3) 33. gxf4 {[%emt 0:00:04]} exf4 {[%emt 0:00:07]} 34. Bf1 {[%emt 0:00:09] Weighted Error Value: White=0.11 (very precise) /Black=0.45} 1-0

[Event "1st Semana Santa Torrevieja 2022"]
[Site "Torrevieja Alicante"]
[Date "2022.04.17"]
[Round "8.11"]
[White "Macias Pino, Diego"]
[Black "Camacho Collados, Marcos"]
[Result "1/2-1/2"]
[ECO "B30"]
[WhiteElo "2317"]
[BlackElo "2462"]
[Annotator "TA"]
[PlyCount "54"]
[EventDate "2022.04.12"]
[EventType "swiss"]
[EventCountry "ESP"]
[SourceTitle "playchess.com"]
[Source "ChessBase"]
[SourceQuality "1"]
[TimeControl "5400+30"]

{[%evp 9,54,-10,-8,-9,0,-26,-18,-22,-22,-22,-18,-19,-15,-35,-27,-35,-34,-35,-35,-35,-35,-47,-47,-56,0,0,0,0,0,-108,-22,-30,34,37,61,63,60,70,289,45,38,25,174,208,382,400,397]} 1. e4 {[%emt 0:00:01]} c5 {[%emt 0:00:12]} 2. Nf3 {[%emt 0:00:06]} Nc6 {[%emt 0:00:16]} 3. Bb5 {[%emt 0:00:06]} e5 {[%emt 0:00:31]} 4. O-O {[%emt 0:02:54]} Bd6 {[%emt 0:00:14]} 5. Bxc6 {[%emt 0:04:45]} dxc6 {[%emt 0:00:12]} 6. d3 {[%emt 0:02:10] B30: Sicilian: 2...Nc6 3 Bb5, lines without ...g6.} Ne7 {[%emt 0:00:48]} 7. Nbd2 {[%emt 0:01:05]} Ng6 {[%emt 0:00:24] [#]} 8. a4 $146 {[%emt 0:01:34] The position is equal.} ({Predecessor:} 8. Nc4 h6 9. Be3 Be6 10. Nfd2 Be7 11. Qh5 Qc7 12. Nf3 Bd6 13. a4 a5 14. g3 {1-0 (34) Krnan,T (2423)-Zambor,N (2279) Tatranske Zruby 2014}) 8... a5 {[%emt 0:01:03]} 9. Nc4 {[%emt 0:01:49]} Bc7 {[%emt 0:00:07]} 10. b3 {[%emt 0:01:21]} b6 {[%emt 0:03:08]} 11. Bb2 {[%emt 0:06:20][%cal Rf3e5]} Qe7 {[%emt 0:05:10]} 12. Kh1 {[%emt 0:08:48]} f6 {[%emt 0:03:20]} 13. Ng1 {[%emt 0:01:34][%cal Bf3g1,Bg1e2,Be2g3,Bg3h5][%mdl 32]} Be6 {[%emt 0:08:52]} 14. Ne2 {[%emt 0:01:10]} h5 {[%emt 0:00:58]} 15. Ng3 {[%emt 0:03:59]} Qd7 {[%emt 0:02:03]} 16. Ne3 {[%emt 0:01:26]} Ne7 {[%emt 0:08:03]} ({Better is} 16... O-O-O $15) 17. Nxh5 $11 {[%emt 0:09:00]} Rh7 {[%emt 0:09:01]} 18. Ng3 {[%emt 0:06:12]} O-O-O {[%emt 0:01:34]} 19. Kg1 {[%emt 0:01:24] [#]} (19. Re1 $1 $11) 19... Kb7 {[%emt 0:02:02]} (19... Rdh8 $1 $17 {Strongly threatening ...Ng6.} 20. h3 Ng6) 20. h3 {[%emt 0:02:25]} Bxh3 {[%emt 0:19:57]} 21. gxh3 $14 {[%emt 0:00:29]} Qxh3 {[%emt 0:00:06][%csl Gh7][%cal Rh3h2]} 22. Re1 $1 {[%emt 0:00:03]} ({Don't go for} 22. Ng4 $2 Rdh8 23. Re1 Ng6 $19) 22... Ng6 $1 {[%emt 0:00:12]} 23. Qg4 {[%emt 0:00:50]} Qh2+ {[%emt 0:00:13]} 24. Kf1 {[%emt 0:00:01]} Nf4 {[%emt 0:00:09]} 25. Red1 $1 {[%emt 0:02:29] Hoping for Qf3.} ({Not} 25. Qf3 $2 Qh3+ 26. Kg1 Rdh8 $19) 25... Rdh8 {[%emt 0:05:43] [#]} (25... Nh3 $2 26. Qf3 $18) (25... g6 $11 {and Black has nothing to worry.}) 26. Ke1 $1 $18 {[%emt 0:41:29]} f5 $2 {[%emt 0:29:12]} (26... Nh3 {was necessary.} 27. Qe2 Ng1) 27. exf5 {[%emt 0:00:00]} e4 {[%emt 0:00:00][%mdl 32768] Weighted Error Value: White=0.11 (very precise) /Black=0.32. An unexpected result.} 1/2-1/2

[Event "1st Semana Santa Torrevieja 2022"]
[Site "Torrevieja Alicante"]
[Date "2022.04.17"]
[Round "8.12"]
[White "Goluch, Piotr"]
[Black "Garrido Outon, Alex"]
[Result "0-1"]
[ECO "E01"]
[WhiteElo "2314"]
[BlackElo "2426"]
[Annotator "TA"]
[PlyCount "84"]
[EventDate "2022.04.12"]
[EventType "swiss"]
[EventCountry "ESP"]
[SourceTitle "playchess.com"]
[Source "ChessBase"]
[SourceQuality "1"]
[TimeControl "5400+30"]

{[%evp 9,84,-22,-25,-21,-15,-22,0,-14,-10,-4,0,-22,-21,-26,-18,-20,-20,-20,-29,-21,-5,-9,0,0,0,0,0,0,12,12,11,-11,-18,-20,-14,-41,-33,-57,-51,-66,-66,-72,-72,-156,-166,-168,-162,-162,-154,-157,-163,-269,-258,-250,-263,-218,-250,-460,-442,-643,-633,-554,-481,-443,-426,-747,-905,-6207,-6199,-29966,-1098,-29969,-6302,-6263,-6249,-2239,-1182]} 1. d4 {[%emt 0:00:03]} Nf6 {[%emt 0:00:08]} 2. c4 {[%emt 0:00:05]} e6 {[%emt 0:00:10]} 3. g3 {[%emt 0:00:22]} d5 {[%emt 0:00:15]} 4. cxd5 exd5 {[%emt 0:00:22]} 5. Bg5 {[%emt 0:02:10]} Be7 {[%emt 0:06:32]} 6. Nc3 {[%emt 0:03:07] E01: Catalan: Early deviations.} c6 {[%emt 0:02:22] [#]} 7. Qc2 $146 {[%emt 0:00:46]} ({Predecessor:} 7. Bg2 Bf5 8. Nf3 Nbd7 9. O-O h6 10. Bxf6 Nxf6 11. e3 O-O 12. h3 Qc8 13. Kh2 Ne4 {½-½ (60) Meyssirel,T (1333)-Kvashyna,T (1764) Europe Echecs INT 2020}) 7... Na6 {[%cal Bb8a6,Ba6c7,Bc7e6][%mdl 32]} 8. a3 {[%emt 0:01:35] The position is equal.} Nc7 {[%emt 0:09:33]} 9. e3 {[%emt 0:04:22]} O-O {[%emt 0:02:20]} 10. Bg2 {[%emt 0:03:58]} Ne6 {[%emt 0:08:35]} 11. Bxf6 {[%emt 0:00:53]} Bxf6 {[%emt 0:00:02]} 12. Nge2 {[%emt 0:00:13]} Re8 {[%emt 0:12:59]} 13. O-O {[%emt 0:00:14]} g6 {[%emt 0:01:16]} 14. b4 {[%emt 0:03:57]} a6 {[%emt 0:02:23]} 15. a4 {[%emt 0:01:04]} Nc7 {[%emt 0:01:16]} 16. b5 {[%emt 0:00:44]} Bf5 {[%emt 0:00:49]} 17. Qd2 {[%emt 0:07:20]} axb5 {[%emt 0:03:16]} 18. axb5 {[%emt 0:00:04]} Qd6 {[%emt 0:00:59]} 19. bxc6 {[%emt 0:02:05]} bxc6 {[%emt 0:00:06]} 20. Na4 {[%emt 0:03:39]} Ne6 {[%emt 0:05:41]} 21. Rfc1 {[%emt 0:04:13]} Reb8 {[%emt 0:04:59]} 22. Qc3 {[%emt 0:16:37]} Rb4 {[%emt 0:05:34]} 23. Nc5 {[%emt 0:16:11]} Rxa1 {[%emt 0:01:18]} 24. Qxa1 {[%emt 0:00:51]} (24. Rxa1 Qxc5 $3 {[%mdl 512]} 25. dxc5 Bxc3 26. Nxc3 Nxc5 $17) 24... Nxc5 {[%emt 0:01:19]} 25. dxc5 {[%emt 0:00:03]} Qd8 {[%emt 0:05:08] 0x0.000e62c4cfb3dp-1022s more active pieces. Black continues to play with concentration.} ({Of course not} 25... Bxa1 26. cxd6 Bf6 27. Rxc6 $11) 26. Nd4 {[%emt 0:00:16]} ({Better is} 26. Qa3 Qb8 27. Qa6) 26... Bxd4 $17 {[%emt 0:04:10]} 27. exd4 {[%emt 0:00:01] [#]} Qf6 $1 {[%emt 0:00:09]} 28. Rd1 {[%emt 0:08:00] [#]} Bc2 $1 {[%emt 0:00:47]} 29. Re1 {[%emt 0:00:01]} Kg7 {[%emt 0:04:16]} ({Inferior is} 29... Rxd4 30. Re8+ Kg7 31. Bf1 $17) ({And not} 29... Qxd4 30. Qa8+ Kg7 31. Qxc6 $17) 30. Qc1 {[%emt 0:02:57]} (30. Rc1 {was necessary.} Ba4 31. Bf1) 30... Rb1 $19 {[%emt 0:02:35]} 31. Qd2 {[%emt 0:00:45]} Rxe1+ {[%emt 0:00:05]} 32. Qxe1 {[%emt 0:00:03]} Qxd4 {[%emt 0:00:05]} 33. h4 $2 {[%emt 0:00:49]} (33. Bf3 {was called for.}) 33... Be4 {[%emt 0:02:55] And now ...Bxg2 would win.} 34. Qc1 {[%emt 0:03:43]} (34. Bf1 $142 Qxc5 35. Qe3 Qxe3 36. fxe3) 34... Bxg2 {[%emt 0:01:31]} 35. Kxg2 {[%emt 0:00:02][%mdl 4096] Endgame KQ-KQ} Qc4 {[%emt 0:01:10]} 36. Qa3 {[%emt 0:01:14]} d4 {[%emt 0:01:04][%cal Bd5d4,Bd4d3][%mdl 32] ...h5 is the strong threat.} 37. Qa5 {[%emt 0:01:49]} (37. g4 $142 h6 38. h5) 37... h5 {[%emt 0:02:35]} 38. Kg1 {[%emt 0:01:28]} d3 {[%emt 0:00:13] ( -> ...Qc1+)} 39. Qd8 {[%emt 0:00:37]} Qc1+ {[%emt 0:01:33]} (39... Qe4 $142 40. Kh2 Qe2 41. Qd4+ Kh7 42. Qf6 Qa2 43. Qf3 d2 44. Qd1 Qb2 45. Qf3 Kg7 46. Qd3 Qa2 47. Qe2 Qc2 48. Qe5+ Kh7 49. Qf4 Qa2 50. Qf3 Qc4 51. Kh3 Qg4+ 52. Qxg4 hxg4+ 53. Kxg4 d1=Q+ 54. Kf4 Qd4+ 55. Kf3 Qxc5 56. Ke4 Qd5+ 57. Kf4 c5 58. h5 c4 59. g4 c3 60. hxg6+ fxg6 61. f3 c2 62. Ke3 c1=Q+ 63. Kf2 Qcd2+ 64. Kg3 g5 65. Kh3 Qxf3#) 40. Kh2 {[%emt 0:02:13]} Qxc5 {[%emt 0:00:21]} (40... Qc3 $142 41. Qd7 d2 42. Qd6 Qc2 43. Qe5+ Kh7 44. Qf6 Qa2 45. Qf3 Qe6 46. Kg1 Qe1+ 47. Kg2 Kg7 48. Qc3+ Kg8 49. Qe3 d1=Q 50. Qxe1 Qxe1 51. Kf3 f5 52. Kg2 Kf7 53. f4 Qe2+ 54. Kh1 Qf1+ 55. Kh2 Ke6 56. g4 fxg4 57. f5+ Kxf5 58. Kg3 Qg1#) 41. Qxd3 {[%emt 0:00:04]} Qxf2+ {[%emt 0:00:06]} 42. Kh1 {[%emt 0:00:04]} c5 {[%emt 0:00:13] Weighted Error Value: White=0.91/Black=0.35} 0-1